{"text_format":"1","workbook":"xlsx","n_sheets":1,"sheets":["PANSİYON KONTENJAN TABLOSU"],"not_rendered":{"charts":0,"images":0,"macros":1,"external_links":0,"defined_names":1,"comments":1,"pivot_tables":0},"unopened":[],"bounds":{"document_bytes":16777216,"sheet_cells":100000,"rows_first":2000,"rows_last":500,"rows_between":2000,"halvings":0,"cell_chars":16384,"cell_head_chars":4096},"cells_cut":0,"cells_raw":0,"read":"whole","date_system":"1900"}

{"sheet":"PANSİYON KONTENJAN TABLOSU","index":0,"n_rows":45,"n_cols":17,"rows_kept":45,"cut":false,"hidden":false,"merged":[[29,0,29,6],[0,0,1,6],[18,6,20,6],[17,0,17,6],[2,0,2,6],[17,10,17,16],[18,16,20,16],[22,16,25,16],[15,10,16,10],[22,6,25,6],[32,0,32,6],[33,0,33,6],[34,0,34,6],[35,4,35,5],[36,4,36,5]]}
["VAN-EVLİYA ÇELEBİ TURİZM MESLEKİ VE TEKNİK ANADOLU LİSESİ                                                                                                     2025-2026 EĞİTİM -ÖĞRETİM YILI PANSİYON KAPASİTESİ,BOŞ KONTENJAN DURUMU VE KONTENJANLARIN SINIFLARA GÖRE DAĞILIMININ HESAPLANMASI"]
[]
["                                Van -Evliya Çelebi Turizm Mesleki ve Teknik Anadolu Lisesi Pansiyonu yatılılık ve bursluluk komisyonu \" Milli Eğitim Bakanlığına Bağlı Resmi Okullarda Yatılılık, Bursluluk,Sosyal Yardımlar ve Okul Pansiyonları Yönetmeliği\"nin 8. maddesi gereğince 20.06.2025 tarihinde Pansiyondan sorumlu Müdür Yardımcısı İhsan KOÇMAN başkalnlığında toplanarak aşağıdaki kararları almıştır.                                                                                                                            Pansiyon mevcut parasız/paralı yatılı kontenjanlarının belirlenerek boş kontenjanların tespit edilmesi ve İlçe Yatılılık ve Bursluluk Komisyonuna bildirilmesine karar verilmiştir.20.06.2025      "]
["Pansiyon","Kız","Erkek"]
["Pansiyon Kapasitesi",75,60]
["Mevcut Kayıtlı Öğrenci",50,38]
["Toplam Boş Kontenjan",{"$f":"B5-B6","v":25},{"$f":"C5-C6","v":22}]
["Parasız Yatılı Kontenjan -\nMadde 10/4",{"$f":"(B7*80/100)","v":20},{"$f":"(C7*80/100)","v":17.600000000000001}]
["Paralı Yatılı Kontenjan -\n Madde 10/4",{"$f":"(B7*20/100)","v":5},{"$f":"(C7*20/100)","v":4.4000000000000004}]
[null,null,null,"Başvuru (Kız)","Başvuru (Erkek)"]
["Madde 10 /1a",{"$f":"(B8*10/100)","v":2},{"$f":"(C8*10/100)","v":1.76}]
["Madde 10 /1b",{"$f":"(B8*5/100)","v":1},{"$f":"(C8*5/100)","v":0.88}]
["Madde 10 /1c",{"$f":"(B8*5/100)","v":1},{"$f":"(C8*5/100)","v":0.88}]
["Toplam Net Kontenjan -Madde 10/1ç",{"$f":"(B8*80/100)","v":16},{"$f":"(C8*80/100)","v":14.08}]
["TOPLAM",{"$f":"SUM(B11:B14)","v":20},{"$f":"SUM(C11:C14)","v":17.600000000000001}]
[null,null,null,null,null,null,null,null,null,null,"Net Parasız Yatılı Kontenjan","Kız","Erkek"]
[null,null,null,null,null,null,null,null,null,null,null,18,63]
["PARASIZ YATILI KONTENJANIN SINIFLAR BAZINDA DAĞILIMI",null,null,null,null,null,null,null,null,null,"PARASIZ YATILI KONTENJANIN SINIFLAR BAZINDA DAĞILIMI"]
[null,"9.SINIF","10.SINIF","11.SINIF","12.SINIF","Toplam","KIZ",null,null,null,null,"9.SINIF","10.SINIF","11.SINIF","12.SINIF","Toplam","KIZ"]
["Talep (Dilekçe Sayısı)",null,null,null,null,{"$f":"SUM(B20:E20)","v":0},null,null,null,null,"Talep (Dilekçe Sayısı)",5,5,5,5,{"$f":"SUM(L20:O20)","v":20}]
["Kontenjan/parasız",{"$f":"(B20*B8/F20)","v":{"$error":"#DIV/0!"}},{"$f":"(C20*B8/F20)","v":{"$error":"#DIV/0!"}},{"$f":"(D20*B8/F20)","v":{"$error":"#DIV/0!"}},{"$f":"(E20*B8/F20)","v":{"$error":"#DIV/0!"}},{"$f":"SUM(B21:E21)","v":{"$error":"#DIV/0!"}},null,null,null,null,"Kontenjan/parasız",10,{"$f":"M20*$L$17/$P$20","v":4.5},{"$f":"N20*$L$17/$P$20","v":4.5},{"$f":"O20*$L$17/$P$20","v":4.5},{"$f":"INT(SUM(L21:O21))","v":23}]
[]
[null,"9.SINIF","10.SINIF","11.SINIF","12.SINIF","Toplam","ERKEK",null,null,null,null,"9.SINIF","10.SINIF","11.SINIF","12.SINIF","Toplam","ERKEK"]
["Talep (Dilekçe Sayısı)",null,null,0,0,{"$f":"SUM(B24:E24)","v":0},null,null,null,null,"Talep (Dilekçe Sayısı)",null,null,null,null,{"$f":"SUM(L24:O24)","v":0}]
["Yüzdelik",{"$f":"(B24*100/F24)","v":{"$error":"#DIV/0!"}},{"$f":"C24*100/F24","v":{"$error":"#DIV/0!"}},{"$f":"D24*100/F24","v":{"$error":"#DIV/0!"}},{"$f":"E24*100/F24","v":{"$error":"#DIV/0!"}},{"$f":"SUM(B25:E25)","v":{"$error":"#DIV/0!"}},null,null,null,null,"Yüzdelik",{"$f":"(L24*100/P24)","v":{"$error":"#DIV/0!"}},{"$f":"M24*100/P24","v":{"$error":"#DIV/0!"}},{"$f":"N24*100/P24","v":{"$error":"#DIV/0!"}},{"$f":"O24*100/P24","v":{"$error":"#DIV/0!"}},{"$f":"SUM(L25:O25)","v":{"$error":"#DIV/0!"}}]
["Kontenjan/parasız",{"$f":"(B24*C8/F24)*100/100","v":{"$error":"#DIV/0!"}},{"$f":"(C24*C8/F24)*100/100","v":{"$error":"#DIV/0!"}},{"$f":"(D24*C8/F24)*100/100","v":{"$error":"#DIV/0!"}},{"$f":"(E24*C8/F24)*100/100","v":{"$error":"#DIV/0!"}},{"$f":"INT(SUM(B26:E26))","v":{"$error":"#DIV/0!"}},null,null,null,null,"Kontenjan/parasız",{"$f":"L24*$M$17/$P$24","v":{"$error":"#DIV/0!"}},{"$f":"M24*$M$17/$P$24","v":{"$error":"#DIV/0!"}},{"$f":"N24*$M$17/$P$24","v":{"$error":"#DIV/0!"}},{"$f":"O24*$M$17/$P$24","v":{"$error":"#DIV/0!"}},{"$f":"INT(SUM(L26:O26))","v":{"$error":"#DIV/0!"}}]
[]
["NOT 1: Yuvarlamalardan kaynaklı bazı toplamlar farklı olabilir."]
["NOT 2 : Boş kalan paralı kontenjanlar komisyon kararı ile parasız kontenjana sonradan dahil edilir."]
["NOT 3 : Yukarıdaki hesaplamalar Milli Eğitim Bakanlığına Bağlı Resmi Okullarda Yatılılık, Bursluluk, Sosyal Yardımlar ve Okul Pansiyonları Yönetmeliği'nin 10.maddesine göre yapılmış olan yaklaşık değerlerdir. (06.06.2024 tarihindeki değişikliğe göre)"]
[]
["NOT:"]
["1.   Her yıl tespit edilen boş kontenjanın sınıflar bazında dağılımı; sınıf bazında başvuran öğrenci sayısının, toplam boş kontenjan ile çarpımının toplam başvuran öğrenci sayısına bölümü ile elde edilen sonuca göre yapılır (Yönetmelik, Madde 10/5)."]
["2.   Yatılı öğrenci yerleştirme esasları doğrultusunda açık kalan paralı yatılı kontenjanlarına parasız yatılı, parasız yatılı kontenjanlarına ise paralı yatılı öğrenciler bir ders yılıyla sınırlı olmak üzere yerleştirilebilir (Yönetmelik, Madde 10/6)."]
["OKUL YATILILIK VE BURSLULUK KAYIT KABUL KOMİSYONU"]
["İhsan KOÇMAN",null,"Nurgül ŞEN YURDAKUL",null,"Şükrü HANGÜL"]
["Pans.Sor.  Müdür Yrd.",null,"Kon. Ve Sey. Hizm. Alan Öğret.",null,"İngilizce Öğretmeni"]
[]
[]
[]
[null,null,null,"2025-06-20"]
[]
[null,null,null,"UYGUNDUR"]
[null,null,null,"Fuat TUR"]
[null,null,null,"Okul Müdürü"]